[Event "*** Titled Tuesday Blitz"]
[Site "Chess.com"]
[Date "2018.06.05"]
[Round "4"]
[White "dalmatinac101"]
[Black "Divertissement"]
[Result "1-0"]
[WhiteElo "2725"]
[BlackElo "2544"]
[TimeControl "180+2"]
[EndTime "13:55:53 PDT"]
[Termination "dalmatinac101 won by resignation"]

1. e4 {[%clk 0:03:01.9]} 1... g6 {[%clk 0:03:01.4]} 2. d4 {[%clk 0:03:02.2]}
2... Bg7 {[%clk 0:03:03.1]} 3. Nc3 {[%clk 0:03:03.6]} 3... c6 {[%clk 0:03:04.1]}
4. f4 {[%clk 0:03:03]} 4... d5 {[%clk 0:03:05.4]} 5. e5 {[%clk 0:03:04.1]} 5...
h5 {[%clk 0:03:06.8]} 6. Nf3 {[%clk 0:03:04.7]} 6... Nh6 {[%clk 0:03:05]} 7. h3
{[%clk 0:03:04.3]} 7... Na6 {[%clk 0:03:02]} 8. Be3 {[%clk 0:03:03.3]} 8... Qb6
{[%clk 0:03:01.5]} 9. Rb1 {[%clk 0:03:02.1]} 9... Nf5 {[%clk 0:02:48.7]} 10. Bf2
{[%clk 0:03:02.3]} 10... h4 {[%clk 0:02:49.5]} 11. a3 {[%clk 0:02:54.8]} 11...
Nc7 {[%clk 0:02:50.3]} 12. Bd3 {[%clk 0:02:55.5]} 12... Ne6 {[%clk 0:02:44.6]}
13. Qd2 {[%clk 0:02:54.7]} 13... Bh6 {[%clk 0:02:43.4]} 14. Ne2 {[%clk
0:02:53.2]} 14... Ng3 {[%clk 0:02:39.5]} 15. Bxg3 {[%clk 0:02:48.1]} 15... hxg3
{[%clk 0:02:41.4]} 16. O-O {[%clk 0:02:46.4]} 16... Bd7 {[%clk 0:02:32.7]} 17.
b4 {[%clk 0:02:45.3]} 17... a6 {[%clk 0:02:26.4]} 18. c3 {[%clk 0:02:43.8]}
18... Qc7 {[%clk 0:02:19.6]} 19. Ng5 {[%clk 0:02:44.2]} 19... a5 {[%clk
0:02:10.7]} 20. Nxg3 {[%clk 0:02:41.2]} 20... axb4 {[%clk 0:02:11.7]} 21. axb4
{[%clk 0:02:41.8]} 21... b5 {[%clk 0:02:08.2]} 22. Ra1 {[%clk 0:02:30.9]} 22...
Ra4 {[%clk 0:02:03.9]} 23. Bc2 {[%clk 0:02:31]} 23... Rxa1 {[%clk 0:02:03.3]}
24. Rxa1 {[%clk 0:02:32.5]} 24... O-O {[%clk 0:01:56.8]} 25. h4 {[%clk
0:02:33.5]} 25... Bxg5 {[%clk 0:01:54.1]} 26. hxg5 {[%clk 0:02:32.3]} 26... Ng7
{[%clk 0:01:48.1]} 27. Rf1 {[%clk 0:02:24.5]} 27... Nf5 {[%clk 0:01:44.2]} 28.
Bxf5 {[%clk 0:02:19.4]} 28... Bxf5 {[%clk 0:01:46.1]} 29. Nxf5 {[%clk
0:02:20.2]} 29... gxf5 {[%clk 0:01:48]} 30. Qd3 {[%clk 0:02:15.5]} 30... Qd7
{[%clk 0:01:41.6]} 31. Rf3 {[%clk 0:02:09.2]} 31... Kg7 {[%clk 0:01:42.2]} 32.
Rh3 {[%clk 0:02:10]} 32... Rh8 {[%clk 0:01:43.1]} 33. Rxh8 {[%clk 0:02:06.5]}
33... Kxh8 {[%clk 0:01:45]} 34. Qh3+ {[%clk 0:02:07.9]} 34... Kg8 {[%clk
0:01:46.5]} 35. Qh6 {[%clk 0:02:08.5]} 35... Qa7 {[%clk 0:01:21.8]} 36. e6
{[%clk 0:01:59.9]} 36... Qa1+ {[%clk 0:01:20]} 37. Kh2 {[%clk 0:02:00.4]} 37...
Qc1 {[%clk 0:01:01.8]} 38. exf7+ {[%clk 0:02:00.4]} 38... Kxf7 {[%clk
0:01:03.2]} 39. g6+ {[%clk 0:02:01.8]} 39... Ke8 {[%clk 0:01:03.4]} 40. Qg5
{[%clk 0:01:44.8]} 40... Kf8 {[%clk 0:01:04.4]} 41. Qxf5+ {[%clk 0:01:45.7]}
41... Ke8 {[%clk 0:01:05.1]} 42. g7 {[%clk 0:01:45.9]} 1-0

[Event "*** Titled Tuesday Blitz"]
[Site "Chess.com"]
[Date "2018.06.05"]
[Round "4"]
[White "CookiesAndIceCream"]
[Black "Xeniya2005"]
[Result "0-1"]
[WhiteElo "1999"]
[BlackElo "1910"]
[TimeControl "180+2"]
[EndTime "13:55:53 PDT"]
[Termination "Xeniya2005 won by resignation"]

1. e4 {[%clk 0:03:01.9]} 1... c5 {[%clk 0:03:00.1]} 2. Nf3 {[%clk 0:03:02.6]}
2... Nc6 {[%clk 0:03:00.8]} 3. d4 {[%clk 0:03:03.7]} 3... cxd4 {[%clk
0:03:01.4]} 4. Nxd4 {[%clk 0:03:05.1]} 4... Nf6 {[%clk 0:03:02.1]} 5. Nc3 {[%clk
0:03:04.1]} 5... e6 {[%clk 0:03:02.3]} 6. Ndb5 {[%clk 0:03:00.9]} 6... Bb4
{[%clk 0:03:02.1]} 7. Bf4 {[%clk 0:03:01.4]} 7... Nxe4 {[%clk 0:02:58.6]} 8. Qf3
{[%clk 0:02:54.8]} 8... d5 {[%clk 0:02:40.1]} 9. Nc7+ {[%clk 0:02:46.5]} 9...
Kf8 {[%clk 0:02:40]} 10. Nxa8 {[%clk 0:02:46.8]} 10... Nd4 {[%clk 0:02:39.7]}
11. Qd3 {[%clk 0:02:35.8]} 11... Qf6 {[%clk 0:02:37.6]} 12. Be3 {[%clk 0:02:29]}
12... Nf5 {[%clk 0:02:26.5]} 13. Be2 {[%clk 0:02:18.5]} 13... Nxc3 {[%clk
0:02:10.3]} 14. Bd2 {[%clk 0:01:46.8]} 14... Nxe2 {[%clk 0:01:45.6]} 15. Bxb4+
{[%clk 0:01:45.1]} 15... Kg8 {[%clk 0:01:45.8]} 16. Qxe2 {[%clk 0:01:42.3]}
16... Qxb2 {[%clk 0:01:44.3]} 17. O-O {[%clk 0:01:16]} 17... Qxb4 {[%clk
0:01:42.5]} 18. Nc7 {[%clk 0:01:01.4]} 18... g6 {[%clk 0:01:29.5]} 19. Ne8
{[%clk 0:00:48.5]} 19... Qe7 {[%clk 0:01:27.7]} 20. g4 {[%clk 0:00:20.9]} 20...
Nh4 {[%clk 0:01:24.8]} 21. Qb5 {[%clk 0:00:19.5]} 21... Bd7 {[%clk 0:01:20.5]}
22. Nf6+ {[%clk 0:00:20.5]} 22... Qxf6 {[%clk 0:01:19.6]} 23. Qxd7 {[%clk
0:00:21.9]} 23... Kg7 {[%clk 0:01:16.3]} 24. f4 {[%clk 0:00:19.5]} 24... Qd4+
{[%clk 0:01:15.8]} 25. Rf2 {[%clk 0:00:18.4]} 25... Qxa1+ {[%clk 0:01:15.5]} 0-1

[Event "*** Titled Tuesday Blitz"]
[Site "Chess.com"]
[Date "2018.06.05"]
[Round "4"]
[White "Perecke"]
[Black "Leo_C"]
[Result "0-1"]
[WhiteElo "1947"]
[BlackElo "2203"]
[TimeControl "180+2"]
[EndTime "13:55:59 PDT"]
[Termination "Leo_C won by resignation"]

1. e4 {[%clk 0:03:01.9]} 1... c5 {[%clk 0:03:00.8]} 2. Nf3 {[%clk 0:01:36.6]}
2... Nc6 {[%clk 0:03:00]} 3. c4 {[%clk 0:01:34.1]} 3... e6 {[%clk 0:02:59.8]} 4.
Be2 {[%clk 0:01:33.3]} 4... Nf6 {[%clk 0:02:54.9]} 5. Nc3 {[%clk 0:01:24.7]}
5... d6 {[%clk 0:02:46.3]} 6. d4 {[%clk 0:01:20.2]} 6... cxd4 {[%clk 0:02:47]}
7. Nxd4 {[%clk 0:01:22.1]} 7... Be7 {[%clk 0:02:48.2]} 8. O-O {[%clk 0:01:21.3]}
8... O-O {[%clk 0:02:48.7]} 9. Be3 {[%clk 0:01:14.3]} 9... Bd7 {[%clk
0:02:48.7]} 10. Kh1 {[%clk 0:01:13.1]} 10... a6 {[%clk 0:02:49.1]} 11. f4 {[%clk
0:01:13.4]} 11... Rc8 {[%clk 0:02:48.2]} 12. Rc1 {[%clk 0:01:07.8]} 12... Qc7
{[%clk 0:02:13.2]} 13. Nd5 {[%clk 0:00:44.8]} 13... exd5 {[%clk 0:02:10.2]} 14.
cxd5 {[%clk 0:00:43.9]} 14... Nxe4 {[%clk 0:02:06.4]} 15. dxc6 {[%clk
0:00:43.2]} 15... bxc6 {[%clk 0:02:05]} 16. Bf3 {[%clk 0:00:41.6]} 16... d5
{[%clk 0:01:59.5]} 17. Bxe4 {[%clk 0:00:36.5]} 17... dxe4 {[%clk 0:01:59.2]} 18.
Qc2 {[%clk 0:00:36.2]} 18... c5 {[%clk 0:01:47.9]} 19. Qxe4 {[%clk 0:00:35]}
19... Rfe8 {[%clk 0:01:42.6]} 20. Nb3 {[%clk 0:00:31.6]} 20... Bc6 {[%clk
0:01:35.8]} 21. Qc2 {[%clk 0:00:26.2]} 21... c4 {[%clk 0:01:33.8]} 22. Nd4
{[%clk 0:00:14.1]} 22... Bd5 {[%clk 0:01:31.1]} 23. Kg1 {[%clk 0:00:14.1]} 23...
Bf6 {[%clk 0:01:23.7]} 24. Rfe1 {[%clk 0:00:14.2]} 24... Rxe3 {[%clk 0:01:23.7]}
25. Rxe3 {[%clk 0:00:10.3]} 25... Bxd4 {[%clk 0:01:24.3]} 0-1

[Event "*** Titled Tuesday Blitz"]
[Site "Chess.com"]
[Date "2018.06.05"]
[Round "4"]
[White "maziarbagheri"]
[Black "ChessMavenYeti"]
[Result "0-1"]
[WhiteElo "2242"]
[BlackElo "2137"]
[TimeControl "180+2"]
[EndTime "13:56:05 PDT"]
[Termination "ChessMavenYeti won on time"]

1. Nf3 {[%clk 0:02:21.8]} 1... d5 {[%clk 0:02:56.5]} 2. d4 {[%clk 0:02:18.4]}
2... Nf6 {[%clk 0:02:51.7]} 3. c4 {[%clk 0:02:17.4]} 3... e6 {[%clk 0:02:52.5]}
4. Nc3 {[%clk 0:02:17.6]} 4... Be7 {[%clk 0:02:52.9]} 5. Bg5 {[%clk 0:02:18.5]}
5... O-O {[%clk 0:02:53.4]} 6. e3 {[%clk 0:02:19.3]} 6... h6 {[%clk 0:02:54.4]}
7. Bxf6 {[%clk 0:02:17.4]} 7... Bxf6 {[%clk 0:02:55.5]} 8. Bd3 {[%clk
0:02:15.4]} 8... b6 {[%clk 0:02:24.8]} 9. O-O {[%clk 0:02:05.5]} 9... dxc4
{[%clk 0:02:21.7]} 10. Bxc4 {[%clk 0:02:02]} 10... Bb7 {[%clk 0:02:22.7]} 11.
Qe2 {[%clk 0:01:58.9]} 11... c5 {[%clk 0:02:16.6]} 12. Rad1 {[%clk 0:01:49.5]}
12... cxd4 {[%clk 0:02:10]} 13. exd4 {[%clk 0:01:48.6]} 13... Qc7 {[%clk
0:01:53.1]} 14. d5 {[%clk 0:01:33.4]} 14... Rc8 {[%clk 0:01:36.1]} 15. Bb3
{[%clk 0:01:10.5]} 15... Bxc3 {[%clk 0:01:20.1]} 16. dxe6 {[%clk 0:00:47.4]}
16... Bf6 {[%clk 0:00:51.8]} 0-1

[Event "*** Titled Tuesday Blitz"]
[Site "Chess.com"]
[Date "2018.06.05"]
[Round "4"]
[White "Durarbayli"]
[Black "Keaton87"]
[Result "1-0"]
[WhiteElo "2665"]
[BlackElo "2454"]
[TimeControl "180+2"]
[EndTime "13:56:07 PDT"]
[Termination "Durarbayli won by resignation"]

1. e4 {[%clk 0:03:01.9]} 1... c5 {[%clk 0:02:59.1]} 2. Nf3 {[%clk 0:03:02.2]}
2... d6 {[%clk 0:02:57.3]} 3. g3 {[%clk 0:03:02.8]} 3... Nc6 {[%clk 0:02:57.2]}
4. Bg2 {[%clk 0:03:03.4]} 4... g6 {[%clk 0:02:53.6]} 5. d4 {[%clk 0:03:00.6]}
5... cxd4 {[%clk 0:02:50.3]} 6. Nxd4 {[%clk 0:03:02.5]} 6... Bd7 {[%clk
0:02:48.9]} 7. O-O {[%clk 0:03:02.2]} 7... Bg7 {[%clk 0:02:49.1]} 8. Ne2 {[%clk
0:03:03]} 8... Nf6 {[%clk 0:02:48.4]} 9. h3 {[%clk 0:03:01.5]} 9... O-O {[%clk
0:02:43.2]} 10. Kh2 {[%clk 0:03:02]} 10... Rb8 {[%clk 0:02:37.2]} 11. Be3 {[%clk
0:03:02.4]} 11... b5 {[%clk 0:02:34.6]} 12. Qd2 {[%clk 0:03:01]} 12... a5 {[%clk
0:02:33.6]} 13. Bh6 {[%clk 0:02:54.4]} 13... Bxh6 {[%clk 0:02:29.9]} 14. Qxh6
{[%clk 0:02:56.3]} 14... Ne5 {[%clk 0:02:24.5]} 15. Kh1 {[%clk 0:02:48.7]} 15...
Qc7 {[%clk 0:02:21.1]} 16. c3 {[%clk 0:02:36.8]} 16... b4 {[%clk 0:02:16.8]} 17.
cxb4 {[%clk 0:02:28.7]} 17... Rxb4 {[%clk 0:02:10.7]} 18. Nbc3 {[%clk
0:02:21.8]} 18... Rxb2 {[%clk 0:02:10.2]} 19. Rac1 {[%clk 0:02:22.5]} 19... Qb6
{[%clk 0:01:54.7]} 20. Nf4 {[%clk 0:02:23.1]} 20... Be6 {[%clk 0:01:39.6]} 21.
Na4 {[%clk 0:02:21.1]} 21... Qb4 {[%clk 0:01:35]} 22. Nxb2 {[%clk 0:02:21.9]}
22... Qxb2 {[%clk 0:01:36.9]} 23. a4 {[%clk 0:02:12.9]} 23... Qb4 {[%clk
0:01:22.5]} 24. Nxe6 {[%clk 0:02:08]} 24... fxe6 {[%clk 0:01:22.8]} 25. Rc7
{[%clk 0:02:03]} 25... Re8 {[%clk 0:01:01.7]} 26. f4 {[%clk 0:01:45.2]} 26...
Nd3 {[%clk 0:00:55.9]} 27. f5 {[%clk 0:01:44.2]} 27... Nxe4 {[%clk 0:00:40.9]}
28. Qe3 {[%clk 0:01:35.8]} 28... Nec5 {[%clk 0:00:23.6]} 29. fxg6 {[%clk
0:01:31.4]} 29... hxg6 {[%clk 0:00:23.7]} 30. Qh6 {[%clk 0:01:24.1]} 30... Ne5
{[%clk 0:00:22.6]} 31. Rxe7 {[%clk 0:01:22.9]} 1-0

[Event "*** Titled Tuesday Blitz"]
[Site "Chess.com"]
[Date "2018.06.05"]
[Round "4"]
[White "Albertu"]
[Black "MFBerna"]
[Result "1-0"]
[WhiteElo "2329"]
[BlackElo "2237"]
[TimeControl "180+2"]
[EndTime "13:56:17 PDT"]
[Termination "Albertu won by resignation"]

1. e4 {[%clk 0:03:01.9]} 1... c6 {[%clk 0:02:57.3]} 2. d4 {[%clk 0:03:02]} 2...
d5 {[%clk 0:02:57.7]} 3. Nc3 {[%clk 0:03:03.4]} 3... dxe4 {[%clk 0:02:57.5]} 4.
Nxe4 {[%clk 0:03:05.3]} 4... Nf6 {[%clk 0:02:57]} 5. Nxf6+ {[%clk 0:03:02.7]}
5... exf6 {[%clk 0:02:58.9]} 6. c3 {[%clk 0:03:04]} 6... Bd6 {[%clk 0:02:59.2]}
7. Bd3 {[%clk 0:03:03.9]} 7... O-O {[%clk 0:02:59.3]} 8. Qc2 {[%clk 0:03:04.1]}
8... Re8+ {[%clk 0:02:57.2]} 9. Ne2 {[%clk 0:02:57.7]} 9... g6 {[%clk 0:02:57]}
10. h4 {[%clk 0:02:45.5]} 10... Nd7 {[%clk 0:02:55.2]} 11. h5 {[%clk 0:02:45.5]}
11... Nf8 {[%clk 0:02:55.8]} 12. Bh6 {[%clk 0:02:46.7]} 12... Bd7 {[%clk
0:02:34.7]} 13. O-O-O {[%clk 0:02:46]} 13... f5 {[%clk 0:02:23.3]} 14. Rdg1
{[%clk 0:02:34.3]} 14... Qf6 {[%clk 0:02:04]} 15. Qd2 {[%clk 0:02:03]} 15... Ne6
{[%clk 0:01:47.7]} 16. g4 {[%clk 0:01:49.3]} 16... fxg4 {[%clk 0:01:34.4]} 17.
Rxg4 {[%clk 0:01:34.7]} 17... Kh8 {[%clk 0:00:42.8]} 18. hxg6 {[%clk 0:01:29.5]}
18... fxg6 {[%clk 0:00:44.7]} 19. Rxg6 {[%clk 0:00:48.2]} 19... Qxf2 {[%clk
0:00:38.2]} 20. Bg7+ {[%clk 0:00:36.6]} 20... Nxg7 {[%clk 0:00:29.3]} 21. Rxh7+
{[%clk 0:00:37.8]} 21... Kxh7 {[%clk 0:00:29]} 22. Qh6+ {[%clk 0:00:38.5]} 1-0

[Event "*** Titled Tuesday Blitz"]
[Site "Chess.com"]
[Date "2018.06.05"]
[Round "4"]
[White "twitchTriniCupid"]
[Black "Angulo07"]
[Result "0-1"]
[WhiteElo "2262"]
[BlackElo "2409"]
[TimeControl "180+2"]
[EndTime "13:56:22 PDT"]
[Termination "Angulo07 won by resignation"]

1. d4 {[%clk 0:03:01.9]} 1... d5 {[%clk 0:02:59.3]} 2. c4 {[%clk 0:03:03]} 2...
Nf6 {[%clk 0:02:57.5]} 3. a3 {[%clk 0:03:00.3]} 3... e6 {[%clk 0:02:57]} 4. cxd5
{[%clk 0:02:58.6]} 4... exd5 {[%clk 0:02:57.3]} 5. Nc3 {[%clk 0:03:00.1]} 5...
Bf5 {[%clk 0:02:55]} 6. Bf4 {[%clk 0:03:00.4]} 6... Bd6 {[%clk 0:02:53.2]} 7.
Bg5 {[%clk 0:02:59.1]} 7... c6 {[%clk 0:02:51.9]} 8. e3 {[%clk 0:02:58.8]} 8...
Nbd7 {[%clk 0:02:48.4]} 9. Bd3 {[%clk 0:02:58.7]} 9... Bxd3 {[%clk 0:02:49.2]}
10. Qxd3 {[%clk 0:02:59.6]} 10... h6 {[%clk 0:02:46.7]} 11. Bh4 {[%clk
0:03:00.3]} 11... Qa5 {[%clk 0:02:43.2]} 12. Ne2 {[%clk 0:02:57.2]} 12... O-O
{[%clk 0:02:40.6]} 13. O-O {[%clk 0:02:57.7]} 13... Rfe8 {[%clk 0:02:38.4]} 14.
b4 {[%clk 0:02:57.6]} 14... Qc7 {[%clk 0:02:38.7]} 15. Bg3 {[%clk 0:02:53.6]}
15... Nb6 {[%clk 0:02:37.1]} 16. Rfc1 {[%clk 0:02:33.2]} 16... a6 {[%clk
0:02:34]} 17. Rab1 {[%clk 0:02:25.1]} 17... Rac8 {[%clk 0:02:29.2]} 18. a4
{[%clk 0:02:22]} 18... Nc4 {[%clk 0:02:26.5]} 19. b5 {[%clk 0:02:22.1]} 19...
Bxg3 {[%clk 0:02:22.1]} 20. Nxg3 {[%clk 0:02:18.8]} 20... axb5 {[%clk
0:02:17.2]} 21. axb5 {[%clk 0:02:19.2]} 21... h5 {[%clk 0:02:18.9]} 22. Na4
{[%clk 0:01:51.3]} 22... h4 {[%clk 0:02:16.5]} 23. Nf5 {[%clk 0:01:41.4]} 23...
Ng4 {[%clk 0:02:13.2]} 24. g3 {[%clk 0:01:35]} 24... hxg3 {[%clk 0:02:14.5]} 25.
hxg3 {[%clk 0:01:36.1]} 25... g6 {[%clk 0:02:11.8]} 26. Nh4 {[%clk 0:01:15.1]}
26... Rxe3 {[%clk 0:01:37.4]} 27. Qf1 {[%clk 0:00:24.5]} 27... Nd2 {[%clk
0:01:29.6]} 28. Qh3 {[%clk 0:00:21.5]} 28... Nxf2 {[%clk 0:01:17.4]} 29. Kxf2
{[%clk 0:00:19.8]} 29... Rxg3 {[%clk 0:01:16.7]} 30. Qh2 {[%clk 0:00:15.8]}
30... Qf4+ {[%clk 0:01:13.3]} 0-1

[Event "*** Titled Tuesday Blitz"]
[Site "Chess.com"]
[Date "2018.06.05"]
[Round "4"]
[White "ChessWarrior7197"]
[Black "IMAghasiyevKamal"]
[Result "1-0"]
[WhiteElo "2684"]
[BlackElo "2473"]
[TimeControl "180+2"]
[EndTime "13:56:27 PDT"]
[Termination "ChessWarrior7197 won by resignation"]

1. d4 {[%clk 0:03:01.9]} 1... Nf6 {[%clk 0:03:00.5]} 2. Nf3 {[%clk 0:03:02.3]}
2... g6 {[%clk 0:03:01.4]} 3. Bf4 {[%clk 0:03:02.3]} 3... Bg7 {[%clk 0:03:01.1]}
4. e3 {[%clk 0:03:02.8]} 4... O-O {[%clk 0:03:01.9]} 5. c4 {[%clk 0:03:00.9]}
5... d5 {[%clk 0:03:00.7]} 6. Nc3 {[%clk 0:03:00.3]} 6... c5 {[%clk 0:02:58.6]}
7. dxc5 {[%clk 0:02:53.4]} 7... Qa5 {[%clk 0:02:55.7]} 8. Bd3 {[%clk 0:02:35.4]}
8... dxc4 {[%clk 0:02:53.8]} 9. Bxc4 {[%clk 0:02:34.9]} 9... Qxc5 {[%clk
0:02:55]} 10. Be2 {[%clk 0:02:31.5]} 10... Nc6 {[%clk 0:02:50.6]} 11. O-O {[%clk
0:02:31.9]} 11... Bf5 {[%clk 0:02:37.7]} 12. Qb3 {[%clk 0:02:29.2]} 12... Qb4
{[%clk 0:02:23.5]} 13. Qxb4 {[%clk 0:02:23.6]} 13... Nxb4 {[%clk 0:02:23.4]} 14.
Nd4 {[%clk 0:02:24.3]} 14... Bd7 {[%clk 0:02:16.2]} 15. Bf3 {[%clk 0:02:18]}
15... Nd3 {[%clk 0:01:50.7]} 16. Bxb7 {[%clk 0:02:15.4]} 16... Rae8 {[%clk
0:01:49.9]} 17. Bg3 {[%clk 0:02:00.3]} 17... e5 {[%clk 0:01:29.8]} 18. Nc6
{[%clk 0:01:58.9]} 18... Nh5 {[%clk 0:01:26.9]} 19. Rfd1 {[%clk 0:01:49.3]}
19... Nc5 {[%clk 0:01:10.5]} 20. Rd5 {[%clk 0:01:41.2]} 20... Nxb7 {[%clk
0:00:55.3]} 21. Rxd7 {[%clk 0:01:40.6]} 21... Nc5 {[%clk 0:00:54.7]} 22. Rxa7
{[%clk 0:01:41.6]} 22... Nxg3 {[%clk 0:00:54.3]} 23. hxg3 {[%clk 0:01:43.5]}
23... e4 {[%clk 0:00:48.3]} 24. Rb1 {[%clk 0:01:37.1]} 24... Ra8 {[%clk
0:00:35.5]} 25. b4 {[%clk 0:01:26.1]} 25... Rxa7 {[%clk 0:00:18.5]} 26. Nxa7
{[%clk 0:01:28]} 26... Ne6 {[%clk 0:00:19.6]} 27. Nxe4 {[%clk 0:01:28]} 27...
Ra8 {[%clk 0:00:20.5]} 28. Nc6 {[%clk 0:01:27.7]} 28... Rxa2 {[%clk 0:00:21.3]}
29. b5 {[%clk 0:01:29]} 1-0

[Event "*** Titled Tuesday Blitz"]
[Site "Chess.com"]
[Date "2018.06.05"]
[Round "4"]
[White "RiskyDecision"]
[Black "petrpalachev"]
[Result "1/2-1/2"]
[WhiteElo "2517"]
[BlackElo "2691"]
[TimeControl "180+2"]
[EndTime "13:56:34 PDT"]
[Termination "Game drawn by repetition"]

1. d4 {[%clk 0:02:13.5]} 1... Nf6 {[%clk 0:03:00]} 2. Bg5 {[%clk 0:02:13.4]}
2... d5 {[%clk 0:03:00.8]} 3. e3 {[%clk 0:02:14.2]} 3... c5 {[%clk 0:03:01.8]}
4. Bxf6 {[%clk 0:02:14.2]} 4... gxf6 {[%clk 0:03:01.9]} 5. dxc5 {[%clk
0:02:15.3]} 5... e6 {[%clk 0:03:01.3]} 6. Bb5+ {[%clk 0:02:08.3]} 6... Bd7
{[%clk 0:02:53.5]} 7. Bxd7+ {[%clk 0:02:05.8]} 7... Qxd7 {[%clk 0:02:54.8]} 8.
Nf3 {[%clk 0:01:51.1]} 8... Bxc5 {[%clk 0:02:54.5]} 9. O-O {[%clk 0:01:51.5]}
9... Nc6 {[%clk 0:02:56]} 10. Nbd2 {[%clk 0:01:45.8]} 10... O-O-O {[%clk
0:02:55.8]} 11. c4 {[%clk 0:01:38.4]} 11... Rhg8 {[%clk 0:02:25.9]} 12. cxd5
{[%clk 0:01:36.8]} 12... Qxd5 {[%clk 0:02:27.8]} 13. Nb3 {[%clk 0:01:31.1]}
13... Qxd1 {[%clk 0:02:26.9]} 14. Rfxd1 {[%clk 0:01:30.4]} 14... Be7 {[%clk
0:02:27.2]} 15. Nbd4 {[%clk 0:01:25.2]} 15... Nxd4 {[%clk 0:02:28.3]} 16. Rxd4
{[%clk 0:01:16.8]} 16... Rxd4 {[%clk 0:02:28.4]} 17. Nxd4 {[%clk 0:01:17.4]}
17... f5 {[%clk 0:02:27]} 18. Rc1+ {[%clk 0:01:13.4]} 18... Kb8 {[%clk
0:02:27.6]} 19. b3 {[%clk 0:00:59.8]} 19... a6 {[%clk 0:02:28.9]} 20. Kf1 {[%clk
0:00:58.4]} 20... Bf6 {[%clk 0:02:30.1]} 21. Nf3 {[%clk 0:00:55.9]} 21... Rd8
{[%clk 0:02:30.1]} 22. Ke2 {[%clk 0:00:54.6]} 22... Rd7 {[%clk 0:02:31.5]} 23.
g3 {[%clk 0:00:55.2]} 23... Rc7 {[%clk 0:02:30.8]} 24. Rxc7 {[%clk 0:00:55.3]}
24... Kxc7 {[%clk 0:02:32.7]} 25. Kd3 {[%clk 0:00:56.3]} 25... Kd6 {[%clk
0:02:32]} 26. Ne1 {[%clk 0:00:40.6]} 26... Kd5 {[%clk 0:02:31]} 27. Nc2 {[%clk
0:00:38.1]} 27... Be7 {[%clk 0:02:32.1]} 28. f4 {[%clk 0:00:34]} 28... h5 {[%clk
0:02:32.8]} 29. h4 {[%clk 0:00:33.9]} 29... b5 {[%clk 0:02:31.2]} 30. Nd4 {[%clk
0:00:32.8]} 30... Bc5 {[%clk 0:02:32.6]} 31. Nc2 {[%clk 0:00:33.6]} 31... f6
{[%clk 0:02:31.7]} 32. Ne1 {[%clk 0:00:33.7]} 32... Bd6 {[%clk 0:02:27.9]} 33.
Nc2 {[%clk 0:00:34.4]} 33... e5 {[%clk 0:02:28.8]} 34. Ne1 {[%clk 0:00:34.9]}
34... Bc5 {[%clk 0:02:27.6]} 35. Nc2 {[%clk 0:00:35.4]} 35... Ke6 {[%clk
0:02:28.8]} 36. Ne1 {[%clk 0:00:35.3]} 36... Bb6 {[%clk 0:02:27.7]} 37. Nc2
{[%clk 0:00:36]} 37... Ba5 {[%clk 0:02:18.2]} 38. Ke2 {[%clk 0:00:32.4]} 38...
Kd5 {[%clk 0:02:16.4]} 39. Kd3 {[%clk 0:00:33.8]} 39... e4+ {[%clk 0:02:14.8]}
40. Ke2 {[%clk 0:00:34]} 40... Bc3 {[%clk 0:02:16.7]} 41. Kd1 {[%clk 0:00:33]}
41... Kc6 {[%clk 0:02:15.7]} 42. Ke2 {[%clk 0:00:34.3]} 42... a5 {[%clk
0:02:15.4]} 43. Kd1 {[%clk 0:00:35.4]} 43... Kc5 {[%clk 0:02:14.2]} 44. Ke2
{[%clk 0:00:36.3]} 44... a4 {[%clk 0:02:14.3]} 45. Kd1 {[%clk 0:00:37]} 45...
axb3 {[%clk 0:02:12.4]} 46. axb3 {[%clk 0:00:37.1]} 46... b4 {[%clk 0:02:13.2]}
47. Ke2 {[%clk 0:00:38.1]} 47... Kd5 {[%clk 0:02:09.8]} 48. Kd1 {[%clk
0:00:38.9]} 48... Kc5 {[%clk 0:02:11.2]} 49. Ke2 {[%clk 0:00:39.4]} 49... Kd5
{[%clk 0:02:12.7]} 50. Kd1 {[%clk 0:00:40.6]} 50... Kc5 {[%clk 0:02:14.2]} 51.
Ke2 {[%clk 0:00:41.7]} 51... Kd5 {[%clk 0:02:15.6]} 52. Kd1 {[%clk 0:00:42.4]}
52... Kc5 {[%clk 0:02:17]} 53. Ke2 {[%clk 0:00:43.5]} 53... Kd5 {[%clk
0:02:18.5]} 1/2-1/2